[Event "Titled Tuesday Blitz December 13 Early 2022"]
[White "Grunberg, Mihai-Lucian"]
[Black "Putnam, Liam"]
[WhiteFideId "1204149"]
[BlackFideId "30938279"]
[WhiteElo "2363"]
[BlackElo "2082"]
[Result "1/2-1/2"]
[Round "03"]
[TimeControl "180+1"]
[Date "2022.12.14"]
[WhiteClock "0:00:14"]
[BlackClock "0:00:04"]

1. Nf3 {[%clk 0:02:35]}  Nf6 {[%clk 0:02:54]} 2. c4 {[%clk 0:02:35]}  g6 {[%clk 0:02:49]} 3. g3 {[%clk 0:02:36]}  Bg7 {[%clk 0:02:50]} 4. Bg2 {[%clk 0:02:37]}  O-O {[%clk 0:02:50]} 5. O-O {[%clk 0:02:38]}  d6 {[%clk 0:02:51]} 6. d4 {[%clk 0:02:39]}  Nc6 {[%clk 0:02:51]} 7. Nc3 {[%clk 0:02:39]}  Bg4 {[%clk 0:02:50]} 8. h3 {[%clk 0:02:34]}  Bxf3 {[%clk 0:02:49]} 9. Bxf3 {[%clk 0:02:34]}  Nd7 {[%clk 0:02:50]} 10. e3 {[%clk 0:02:33]}  e5 {[%clk 0:02:50]} 11. d5 {[%clk 0:02:33]}  Ne7 {[%clk 0:02:50]} 12. Bg2 {[%clk 0:02:33]}  a5 {[%clk 0:02:49]} 13. b3 {[%clk 0:02:31]}  f5 {[%clk 0:02:48]} 14. Bb2 {[%clk 0:02:30]}  e4 {[%clk 0:02:47]} 15. Qc2 {[%clk 0:02:29]}  Nc5 {[%clk 0:02:43]} 16. Nb5 {[%clk 0:02:29]}  Bxb2 {[%clk 0:02:41]} 17. Qxb2 {[%clk 0:02:29]}  c6 {[%clk 0:02:41]} 18. dxc6 {[%clk 0:02:28]}  bxc6 {[%clk 0:02:42]} 19. Nd4 {[%clk 0:02:28]}  Qc8 {[%clk 0:02:35]} 20. Rfd1 {[%clk 0:02:26]}  Rd8 {[%clk 0:02:29]} 21. Qc3 {[%clk 0:02:22]}  Nd3 {[%clk 0:02:16]} 22. Rd2 {[%clk 0:02:14]}  c5 {[%clk 0:02:09]} 23. Nb5 {[%clk 0:02:13]}  d5 {[%clk 0:02:09]} 24. Bf1 {[%clk 0:02:00]}  d4 {[%clk 0:01:34]} 25. exd4 {[%clk 0:01:51]}  cxd4 {[%clk 0:01:35]} 26. Nxd4 {[%clk 0:01:39]}  Ne5 {[%clk 0:01:35]} 27. Be2 {[%clk 0:01:31]}  Nd5 {[%clk 0:01:23]} 28. Qb2 {[%clk 0:01:30]}  Nb4 {[%clk 0:01:16]} 29. Nb5 {[%clk 0:01:22]}  Qc5 {[%clk 0:01:02]} 30. Rad1 {[%clk 0:01:13]}  Nbd3 {[%clk 0:00:56]} 31. Bxd3 {[%clk 0:01:12]}  Nf3+ {[%clk 0:00:55]} 32. Kg2 {[%clk 0:01:10]}  Nxd2 {[%clk 0:00:55]} 33. Rxd2 {[%clk 0:00:59]}  Rxd3 {[%clk 0:00:51]} 34. Re2 {[%clk 0:00:52]}  Qc6 {[%clk 0:00:47]} 35. Kh2 {[%clk 0:00:49]}  Rad8 {[%clk 0:00:47]} 36. Qe5 {[%clk 0:00:44]}  Qb6 {[%clk 0:00:36]} 37. Kg2 {[%clk 0:00:34]}  Qb7 {[%clk 0:00:28]} 38. Kh2 {[%clk 0:00:28]}  Rd1 {[%clk 0:00:28]} 39. Nc3 {[%clk 0:00:24]}  R1d7 {[%clk 0:00:16]} 40. Nd5 {[%clk 0:00:21]}  Rxd5 {[%clk 0:00:16]} 41. cxd5 {[%clk 0:00:21]}  Qxd5 {[%clk 0:00:14]} 42. Qxd5+ {[%clk 0:00:21]}  Rxd5 {[%clk 0:00:15]} 43. Rc2 {[%clk 0:00:21]}  Kg7 {[%clk 0:00:14]} 44. h4 {[%clk 0:00:21]}  Kf6 {[%clk 0:00:10]} 45. Kg2 {[%clk 0:00:21]}  h6 {[%clk 0:00:11]} 46. Kf1 {[%clk 0:00:21]}  Ke5 {[%clk 0:00:11]} 47. Ke2 {[%clk 0:00:21]}  g5 {[%clk 0:00:11]} 48. hxg5 {[%clk 0:00:20]}  hxg5 {[%clk 0:00:12]} 49. a3 {[%clk 0:00:21]}  f4 {[%clk 0:00:12]} 50. gxf4+ {[%clk 0:00:20]}  gxf4 {[%clk 0:00:12]} 51. Rb2 {[%clk 0:00:21]}  f3+ {[%clk 0:00:12]} 52. Ke1 {[%clk 0:00:20]}  Kf4 {[%clk 0:00:13]} 53. b4 {[%clk 0:00:20]}  axb4 {[%clk 0:00:11]} 54. axb4 {[%clk 0:00:20]}  Rh5 {[%clk 0:00:10]} 55. b5 {[%clk 0:00:18]}  Rh1+ {[%clk 0:00:09]} 56. Kd2 {[%clk 0:00:18]}  Rf1 {[%clk 0:00:08]} 57. Kc3 {[%clk 0:00:17]}  e3 {[%clk 0:00:06]} 58. fxe3+ {[%clk 0:00:17]}  Kxe3 {[%clk 0:00:07]} 59. Kc4 {[%clk 0:00:15]}  Rc1+ {[%clk 0:00:04]} 60. Kd5 {[%clk 0:00:15]}  Rc8 {[%clk 0:00:03]} 61. b6 {[%clk 0:00:13]}  f2 {[%clk 0:00:02]} 62. Rxf2 {[%clk 0:00:13]}  Kxf2 {[%clk 0:00:03]} 63. b7 {[%clk 0:00:13]}  Rb8 {[%clk 0:00:03]} 64. Kc6 {[%clk 0:00:14]}  Ke3 {[%clk 0:00:04]} 65. Kc7 {[%clk 0:00:14]}  Rxb7+ {[%clk 0:00:04]} 66. Kxb7 {[%clk 0:00:14]} 1/2-1/2


[Site "https://www.chess.com"]

[Event "Titled Tuesday Blitz December 13 Early 2022"]
[White "Guliev, Logman"]
[Black "Skliarov, Viktor"]
[WhiteFideId "13400061"]
[BlackFideId "14106736"]
[WhiteElo "2161"]
[BlackElo "2284"]
[Result "0-1"]
[Round "03"]
[TimeControl "180+1"]
[Date "2022.12.14"]
[WhiteClock "0:00:01"]
[BlackClock "0:01:00"]

1. e4 {[%clk 0:02:32]}  c5 {[%clk 0:02:59]} 2. Nf3 {[%clk 0:02:31]}  Nc6 {[%clk 0:02:59]} 3. d4 {[%clk 0:02:28]}  cxd4 {[%clk 0:03:00]} 4. Nxd4 {[%clk 0:02:28]}  Nf6 {[%clk 0:03:01]} 5. Nc3 {[%clk 0:02:29]}  e5 {[%clk 0:03:01]} 6. Ndb5 {[%clk 0:02:29]}  d6 {[%clk 0:03:01]} 7. Nd5 {[%clk 0:02:29]}  Nxd5 {[%clk 0:03:00]} 8. exd5 {[%clk 0:02:29]}  Nb8 {[%clk 0:03:01]} 9. c4 {[%clk 0:02:29]}  Be7 {[%clk 0:03:00]} 10. Be2 {[%clk 0:02:30]}  a6 {[%clk 0:03:00]} 11. Nc3 {[%clk 0:02:29]}  O-O {[%clk 0:03:00]} 12. O-O {[%clk 0:02:29]}  Nd7 {[%clk 0:03:01]} 13. f4 {[%clk 0:02:27]}  f5 {[%clk 0:03:00]} 14. Kh1 {[%clk 0:02:27]}  Bf6 {[%clk 0:02:53]} 15. Qc2 {[%clk 0:02:27]}  g6 {[%clk 0:02:51]} 16. Be3 {[%clk 0:02:27]}  b6 {[%clk 0:02:45]} 17. Rac1 {[%clk 0:02:24]}  Ra7 {[%clk 0:02:44]} 18. g3 {[%clk 0:02:18]}  Rc7 {[%clk 0:02:41]} 19. a4 {[%clk 0:02:15]}  Bb7 {[%clk 0:02:17]} 20. b4 {[%clk 0:02:04]}  exf4 {[%clk 0:01:34]} 21. Bxf4 {[%clk 0:02:01]}  Ne5 {[%clk 0:01:34]} 22. Qb3 {[%clk 0:01:55]}  Qc8 {[%clk 0:01:27]} 23. Nd1 {[%clk 0:01:26]}  Nxc4 {[%clk 0:01:20]} 24. Ne3 {[%clk 0:00:49]}  Nd2 {[%clk 0:01:12]} 25. Rxc7 {[%clk 0:00:06]}  Qxc7 {[%clk 0:01:11]} 26. Qd3 {[%clk 0:00:06]}  Nxf1 {[%clk 0:01:11]} 27. Bxf1 {[%clk 0:00:07]}  Re8 {[%clk 0:01:08]} 28. Kg1 {[%clk 0:00:04]}  Be5 {[%clk 0:01:04]} 29. Bh6 {[%clk 0:00:03]}  Qc3 {[%clk 0:01:01]} 30. Qb1 {[%clk 0:00:01]}  Bd4 {[%clk 0:01:00]} 0-1


[Site "https://www.chess.com"]

[Event "Titled Tuesday Blitz December 13 Early 2022"]
[White "Harshavardhan G B"]
[Black "Keymer, Vincent"]
[WhiteFideId "25059009"]
[BlackFideId "12940690"]
[WhiteElo "2323"]
[BlackElo "2600"]
[Result "0-1"]
[Round "03"]
[TimeControl "180+1"]
[Date "2022.12.13"]
[WhiteClock "0:00:04"]
[BlackClock "0:00:11"]

1. d4 {[%clk 0:03:00]}  Nf6 {[%clk 0:02:59]} 2. c4 {[%clk 0:02:59]}  e6 {[%clk 0:03:00]} 3. Nf3 {[%clk 0:02:58]}  d5 {[%clk 0:03:00]} 4. Nc3 {[%clk 0:02:58]}  h6 {[%clk 0:02:59]} 5. g3 {[%clk 0:02:57]}  Be7 {[%clk 0:02:55]} 6. a3 {[%clk 0:02:56]}  O-O {[%clk 0:02:54]} 7. g4 {[%clk 0:02:56]}  c5 {[%clk 0:02:45]} 8. g5 {[%clk 0:02:55]}  hxg5 {[%clk 0:02:45]} 9. Bxg5 {[%clk 0:02:55]}  cxd4 {[%clk 0:02:41]} 10. Qxd4 {[%clk 0:02:53]}  Nc6 {[%clk 0:02:41]} 11. Qh4 {[%clk 0:02:52]}  d4 {[%clk 0:02:35]} 12. Ne4 {[%clk 0:02:35]}  Nxe4 {[%clk 0:02:29]} 13. Bxe7 {[%clk 0:02:33]}  Qxe7 {[%clk 0:02:28]} 14. Qxe4 {[%clk 0:02:32]}  f5 {[%clk 0:02:26]} 15. Qf4 {[%clk 0:02:22]}  e5 {[%clk 0:02:25]} 16. Qg3 {[%clk 0:02:22]}  f4 {[%clk 0:02:24]} 17. Qg5 {[%clk 0:02:16]}  Re8 {[%clk 0:02:03]} 18. Qh5 {[%clk 0:02:04]}  Qf7 {[%clk 0:01:55]} 19. Qh4 {[%clk 0:01:48]}  Qf6 {[%clk 0:01:52]} 20. Ng5 {[%clk 0:01:45]}  Bf5 {[%clk 0:01:51]} 21. Bg2 {[%clk 0:01:41]}  e4 {[%clk 0:01:51]} 22. Qxf4 {[%clk 0:01:36]}  Bg6 {[%clk 0:01:47]} 23. Qg3 {[%clk 0:01:18]}  d3 {[%clk 0:01:45]} 24. O-O {[%clk 0:01:12]}  Nd4 {[%clk 0:01:44]} 25. Kh1 {[%clk 0:01:07]}  Nxe2 {[%clk 0:01:25]} 26. Qe3 {[%clk 0:00:59]}  Nf4 {[%clk 0:01:05]} 27. Nxe4 {[%clk 0:00:57]}  Qf7 {[%clk 0:00:33]} 28. Nd6 {[%clk 0:00:24]}  Rxe3 {[%clk 0:00:28]} 29. Nxf7 {[%clk 0:00:24]}  Re7 {[%clk 0:00:28]} 30. Ng5 {[%clk 0:00:21]}  Rd8 {[%clk 0:00:27]} 31. Rad1 {[%clk 0:00:18]}  d2 {[%clk 0:00:24]} 32. Nf3 {[%clk 0:00:16]}  Nxg2 {[%clk 0:00:20]} 33. Kxg2 {[%clk 0:00:16]}  Bh5 {[%clk 0:00:21]} 34. Kg3 {[%clk 0:00:06]}  Rf7 {[%clk 0:00:21]} 35. Ne5 {[%clk 0:00:04]}  Bxd1 {[%clk 0:00:16]} 36. Rxd1 {[%clk 0:00:05]}  Rf5 {[%clk 0:00:11]} 37. Nf3 {[%clk 0:00:04]}  Rd3 {[%clk 0:00:11]} 0-1


[Site "https://www.chess.com"]

[Event "Titled Tuesday Blitz December 13 Early 2022"]
[White "Hrabinska, Myroslava"]
[Black "Fernandez Garcia, Gumersindo"]
[WhiteFideId "14109190"]
[BlackFideId "24516740"]
[WhiteElo "2171"]
[BlackElo "2140"]
[Result "0-1"]
[Round "03"]
[TimeControl "180+1"]
[Date "2022.12.14"]
[WhiteClock "0:00:01"]
[BlackClock "0:00:28"]

1. e4 {[%clk 0:02:58]}  d6 {[%clk 0:02:17]} 2. d4 {[%clk 0:02:56]}  Nf6 {[%clk 0:02:15]} 3. Nc3 {[%clk 0:02:49]}  e5 {[%clk 0:02:15]} 4. dxe5 {[%clk 0:02:40]}  dxe5 {[%clk 0:02:16]} 5. Qxd8+ {[%clk 0:02:40]}  Kxd8 {[%clk 0:02:17]} 6. Bc4 {[%clk 0:02:39]}  Ke8 {[%clk 0:02:16]} 7. Nf3 {[%clk 0:02:36]}  Nbd7 {[%clk 0:02:14]} 8. Ng5 {[%clk 0:02:34]}  Bb4 {[%clk 0:01:59]} 9. Nxf7 {[%clk 0:02:18]}  Rf8 {[%clk 0:01:55]} 10. Ng5 {[%clk 0:02:17]}  Nb6 {[%clk 0:01:49]} 11. Bd3 {[%clk 0:02:05]}  Bg4 {[%clk 0:01:44]} 12. h3 {[%clk 0:01:54]}  Bd7 {[%clk 0:01:40]} 13. Bd2 {[%clk 0:01:38]}  h6 {[%clk 0:01:24]} 14. Nf3 {[%clk 0:01:37]}  Bd6 {[%clk 0:01:18]} 15. Nb5 {[%clk 0:01:26]}  Bxb5 {[%clk 0:01:16]} 16. Bxb5+ {[%clk 0:01:25]}  c6 {[%clk 0:01:16]} 17. Bd3 {[%clk 0:01:25]}  Ke7 {[%clk 0:01:15]} 18. Bc3 {[%clk 0:01:24]}  Nfd7 {[%clk 0:01:12]} 19. a4 {[%clk 0:01:14]}  Kf6 {[%clk 0:00:56]} 20. a5 {[%clk 0:01:11]}  Nc8 {[%clk 0:00:55]} 21. Rd1 {[%clk 0:00:59]}  Nc5 {[%clk 0:00:54]} 22. b4 {[%clk 0:00:48]}  Na4 {[%clk 0:00:52]} 23. Ba1 {[%clk 0:00:19]}  Bxb4+ {[%clk 0:00:51]} 24. Ke2 {[%clk 0:00:19]}  Nc3+ {[%clk 0:00:51]} 25. Bxc3 {[%clk 0:00:18]}  Bxc3 {[%clk 0:00:51]} 26. a6 {[%clk 0:00:16]}  b6 {[%clk 0:00:51]} 27. Bc4 {[%clk 0:00:16]}  Ke7 {[%clk 0:00:47]} 28. Rd3 {[%clk 0:00:15]}  Bd4 {[%clk 0:00:37]} 29. c3 {[%clk 0:00:14]}  Bc5 {[%clk 0:00:35]} 30. Nxe5 {[%clk 0:00:14]}  Nd6 {[%clk 0:00:35]} 31. f3 {[%clk 0:00:10]}  Nxc4 {[%clk 0:00:35]} 32. Nxc4 {[%clk 0:00:10]}  Rad8 {[%clk 0:00:34]} 33. Rhd1 {[%clk 0:00:10]}  Rxd3 {[%clk 0:00:33]} 34. Rxd3 {[%clk 0:00:10]}  Ke6 {[%clk 0:00:32]} 35. g3 {[%clk 0:00:07]}  g5 {[%clk 0:00:32]} 36. Rd1 {[%clk 0:00:05]}  b5 {[%clk 0:00:29]} 37. Na5 {[%clk 0:00:04]}  Rc8 {[%clk 0:00:30]} 38. f4 {[%clk 0:00:03]}  Bb6 {[%clk 0:00:30]} 39. Nb7 {[%clk 0:00:02]}  c5 {[%clk 0:00:26]} 40. Rd6+ {[%clk 0:00:01]}  Ke7 {[%clk 0:00:26]} 41. Rxh6 {[%clk 0:00:01]}  b4 {[%clk 0:00:27]} 42. cxb4 {[%clk 0:00:01]}  cxb4 {[%clk 0:00:28]} 0-1


[Site "https://www.chess.com"]

[Event "Titled Tuesday Blitz December 13 Early 2022"]
[White "Iskusnyh, Sergei"]
[Black "Perez Rodriguez, Jennifer"]
[WhiteFideId "4120027"]
[BlackFideId "3507831"]
[WhiteElo "2492"]
[BlackElo "2170"]
[Result "1-0"]
[Round "03"]
[TimeControl "180+1"]
[Date "2022.12.14"]
[WhiteClock "0:00:19"]
[BlackClock "0:00:17"]

1. d4 {[%clk 0:03:00]}  d5 {[%clk 0:02:59]} 2. c4 {[%clk 0:03:00]}  c6 {[%clk 0:02:59]} 3. Nf3 {[%clk 0:03:00]}  Nf6 {[%clk 0:02:59]} 4. e3 {[%clk 0:03:00]}  e6 {[%clk 0:02:58]} 5. b3 {[%clk 0:02:59]}  Bb4+ {[%clk 0:02:55]} 6. Nbd2 {[%clk 0:02:58]}  Ne4 {[%clk 0:02:55]} 7. Bd3 {[%clk 0:02:54]}  f5 {[%clk 0:02:44]} 8. O-O {[%clk 0:02:53]}  Bxd2 {[%clk 0:02:42]} 9. Bxd2 {[%clk 0:02:52]}  O-O {[%clk 0:02:42]} 10. Bb4 {[%clk 0:02:49]}  Rf6 {[%clk 0:02:41]} 11. Qc2 {[%clk 0:02:34]}  Nd7 {[%clk 0:02:40]} 12. a4 {[%clk 0:02:23]}  Rh6 {[%clk 0:02:33]} 13. a5 {[%clk 0:02:09]}  a6 {[%clk 0:02:31]} 14. Rad1 {[%clk 0:02:02]}  Qe8 {[%clk 0:02:30]} 15. Rfe1 {[%clk 0:01:32]}  Qh5 {[%clk 0:02:27]} 16. Bf1 {[%clk 0:01:29]}  Ndf6 {[%clk 0:02:23]} 17. h3 {[%clk 0:01:17]}  Ng4 {[%clk 0:02:18]} 18. Re2 {[%clk 0:01:08]}  Bd7 {[%clk 0:02:17]} 19. Nd2 {[%clk 0:01:00]}  Nexf2 {[%clk 0:02:08]} 20. Rxf2 {[%clk 0:00:58]}  Nxe3 {[%clk 0:02:07]} 21. Be2 {[%clk 0:00:49]}  Nxc2 {[%clk 0:02:05]} 22. Bxh5 {[%clk 0:00:48]}  Nxb4 {[%clk 0:02:06]} 23. Be2 {[%clk 0:00:45]}  Re8 {[%clk 0:01:46]} 24. Nf3 {[%clk 0:00:44]}  Rf6 {[%clk 0:01:31]} 25. Ne5 {[%clk 0:00:43]}  Bc8 {[%clk 0:01:32]} 26. Rd2 {[%clk 0:00:40]}  g5 {[%clk 0:01:15]} 27. Rf1 {[%clk 0:00:38]}  dxc4 {[%clk 0:01:00]} 28. bxc4 {[%clk 0:00:34]}  c5 {[%clk 0:00:59]} 29. dxc5 {[%clk 0:00:32]}  Nc6 {[%clk 0:00:50]} 30. Nxc6 {[%clk 0:00:32]}  bxc6 {[%clk 0:00:50]} 31. Rd6 {[%clk 0:00:32]}  Kg7 {[%clk 0:00:45]} 32. Rxc6 {[%clk 0:00:30]}  e5 {[%clk 0:00:46]} 33. Rb6 {[%clk 0:00:29]}  e4 {[%clk 0:00:42]} 34. Rd1 {[%clk 0:00:24]}  Re5 {[%clk 0:00:38]} 35. Rd5 {[%clk 0:00:20]}  Re7 {[%clk 0:00:27]} 36. Rd8 {[%clk 0:00:19]}  Be6 {[%clk 0:00:26]} 37. c6 {[%clk 0:00:18]}  Rc7 {[%clk 0:00:22]} 38. Rb7 {[%clk 0:00:18]}  Rff7 {[%clk 0:00:19]} 39. Rdb8 {[%clk 0:00:18]}  f4 {[%clk 0:00:18]} 40. Bh5 {[%clk 0:00:18]}  Rfe7 {[%clk 0:00:17]} 41. Rxc7 {[%clk 0:00:18]}  Rxc7 {[%clk 0:00:17]} 42. Rb7 {[%clk 0:00:19]} 1-0


[Site "https://www.chess.com"]

[Event "Titled Tuesday Blitz December 13 Early 2022"]
[White "Jaracz, Pawel"]
[Black "Hirneise, Jens"]
[WhiteFideId "1102222"]
[BlackFideId "24614734"]
[WhiteElo "2460"]
[BlackElo "2345"]
[Result "0-1"]
[Round "03"]
[TimeControl "180+1"]
[Date "2022.12.14"]
[WhiteClock "0:00:54"]
[BlackClock "0:00:10"]

1. e4 {[%clk 0:02:55]}  e5 {[%clk 0:02:59]} 2. Nf3 {[%clk 0:02:52]}  Nf6 {[%clk 0:02:59]} 3. Nc3 {[%clk 0:02:51]}  Nc6 {[%clk 0:02:57]} 4. Bb5 {[%clk 0:02:51]}  Bb4 {[%clk 0:02:46]} 5. O-O {[%clk 0:02:50]}  O-O {[%clk 0:02:44]} 6. d3 {[%clk 0:02:50]}  Re8 {[%clk 0:02:30]} 7. Bg5 {[%clk 0:02:44]}  h6 {[%clk 0:02:28]} 8. Bh4 {[%clk 0:02:44]}  a6 {[%clk 0:02:22]} 9. Ba4 {[%clk 0:02:37]}  b5 {[%clk 0:02:22]} 10. Bb3 {[%clk 0:02:37]}  Be7 {[%clk 0:02:23]} 11. Re1 {[%clk 0:02:30]}  d6 {[%clk 0:02:23]} 12. Nd5 {[%clk 0:02:25]}  Nxd5 {[%clk 0:02:18]} 13. Bxd5 {[%clk 0:02:25]}  Bb7 {[%clk 0:02:11]} 14. Bg3 {[%clk 0:02:24]}  Na5 {[%clk 0:02:08]} 15. Bxb7 {[%clk 0:02:22]}  Nxb7 {[%clk 0:02:09]} 16. d4 {[%clk 0:02:23]}  Bf6 {[%clk 0:02:03]} 17. a4 {[%clk 0:02:18]}  bxa4 {[%clk 0:01:56]} 18. Rxa4 {[%clk 0:02:17]}  exd4 {[%clk 0:01:56]} 19. Rc4 {[%clk 0:01:57]}  c5 {[%clk 0:01:49]} 20. b4 {[%clk 0:01:57]}  Qb6 {[%clk 0:01:47]} 21. bxc5 {[%clk 0:01:53]}  dxc5 {[%clk 0:01:35]} 22. e5 {[%clk 0:01:52]}  Be7 {[%clk 0:01:35]} 23. Ra4 {[%clk 0:01:38]}  Qb5 {[%clk 0:01:15]} 24. Qa1 {[%clk 0:01:36]}  a5 {[%clk 0:01:15]} 25. Rb1 {[%clk 0:01:34]}  Qc6 {[%clk 0:01:15]} 26. Nd2 {[%clk 0:01:33]}  f6 {[%clk 0:01:05]} 27. Nc4 {[%clk 0:01:30]}  fxe5 {[%clk 0:01:01]} 28. Nxe5 {[%clk 0:01:29]}  Qd5 {[%clk 0:00:59]} 29. Nc4 {[%clk 0:01:29]}  Ra6 {[%clk 0:00:50]} 30. h3 {[%clk 0:01:20]}  Bf6 {[%clk 0:00:46]} 31. Qa3 {[%clk 0:01:16]}  Re2 {[%clk 0:00:37]} 32. Nxa5 {[%clk 0:01:12]}  Nxa5 {[%clk 0:00:34]} 33. Rb8+ {[%clk 0:01:10]}  Kh7 {[%clk 0:00:33]} 34. Qd3+ {[%clk 0:01:09]}  Qe4 {[%clk 0:00:30]} 35. Qxa6 {[%clk 0:01:09]}  Nc6 {[%clk 0:00:23]} 36. Rc8 {[%clk 0:01:06]}  Nb4 {[%clk 0:00:21]} 37. Rxc5 {[%clk 0:01:02]}  Nxa6 {[%clk 0:00:20]} 38. Rxa6 {[%clk 0:01:01]}  Rxc2 {[%clk 0:00:20]} 39. Rca5 {[%clk 0:00:59]}  Rc1+ {[%clk 0:00:19]} 40. Kh2 {[%clk 0:00:59]}  Qe1 {[%clk 0:00:19]} 41. Bf4 {[%clk 0:00:59]}  Qg1+ {[%clk 0:00:18]} 42. Kg3 {[%clk 0:01:00]}  Rc3+ {[%clk 0:00:18]} 43. f3 {[%clk 0:01:00]}  Qe1+ {[%clk 0:00:18]} 44. Kg4 {[%clk 0:00:59]}  Qe8 {[%clk 0:00:13]} 45. h4 {[%clk 0:00:58]}  Rc2 {[%clk 0:00:10]} 46. g3 {[%clk 0:00:58]}  Qd7+ {[%clk 0:00:10]} 47. Rf5 {[%clk 0:00:54]}  g6 {[%clk 0:00:09]} 48. Rxf6 {[%clk 0:00:54]}  gxf5+ {[%clk 0:00:09]} 49. Rxf5 {[%clk 0:00:55]}  Rc5 {[%clk 0:00:10]} 50. Be5 {[%clk 0:00:54]}  Rxe5 {[%clk 0:00:10]} 0-1


[Site "https://www.chess.com"]

[Event "Titled Tuesday Blitz December 13 Early 2022"]
[White "Kamsky, Gata"]
[Black "Mikhailovsky, Vladimir"]
[WhiteFideId "2000024"]
[BlackFideId "34105414"]
[WhiteElo "2666"]
[BlackElo "2295"]
[Result "1-0"]
[Round "03"]
[TimeControl "180+1"]
[Date "2022.12.13"]
[WhiteClock "0:01:39"]
[BlackClock "0:00:43"]

1. d4 {[%clk 0:03:00]}  d6 {[%clk 0:03:00]} 2. e4 {[%clk 0:02:57]}  Nf6 {[%clk 0:02:58]} 3. Nc3 {[%clk 0:02:57]}  e5 {[%clk 0:02:59]} 4. dxe5 {[%clk 0:02:56]}  dxe5 {[%clk 0:03:00]} 5. Qxd8+ {[%clk 0:02:56]}  Kxd8 {[%clk 0:03:00]} 6. Bc4 {[%clk 0:02:56]}  Be6 {[%clk 0:02:58]} 7. Bxe6 {[%clk 0:02:56]}  fxe6 {[%clk 0:02:59]} 8. f3 {[%clk 0:02:53]}  Nbd7 {[%clk 0:02:54]} 9. Nh3 {[%clk 0:02:51]}  Bc5 {[%clk 0:02:52]} 10. Nf2 {[%clk 0:02:51]}  Ke7 {[%clk 0:02:51]} 11. Nd3 {[%clk 0:02:51]}  Bd4 {[%clk 0:02:45]} 12. Ne2 {[%clk 0:02:42]}  Bb6 {[%clk 0:02:40]} 13. b3 {[%clk 0:02:38]}  c6 {[%clk 0:02:21]} 14. Bb2 {[%clk 0:02:37]}  Bc7 {[%clk 0:02:21]} 15. a4 {[%clk 0:02:35]}  g5 {[%clk 0:02:08]} 16. h3 {[%clk 0:02:17]}  Nh5 {[%clk 0:02:04]} 17. g4 {[%clk 0:02:05]}  Nf4 {[%clk 0:01:46]} 18. Nexf4 {[%clk 0:02:04]}  gxf4 {[%clk 0:01:29]} 19. h4 {[%clk 0:02:04]}  Bd6 {[%clk 0:01:19]} 20. h5 {[%clk 0:02:01]}  h6 {[%clk 0:01:16]} 21. Ke2 {[%clk 0:02:00]}  Rhg8 {[%clk 0:01:12]} 22. Bc3 {[%clk 0:01:58]}  Rg5 {[%clk 0:01:11]} 23. Rhd1 {[%clk 0:01:51]}  a5 {[%clk 0:00:58]} 24. Be1 {[%clk 0:01:42]}  Rg7 {[%clk 0:00:49]} 25. Bh4+ {[%clk 0:01:41]}  Ke8 {[%clk 0:00:43]} 26. Nxf4 {[%clk 0:01:39]} 1-0


[Site "https://www.chess.com"]

[Event "Titled Tuesday Blitz December 13 Early 2022"]
[White "Kazakouski, Valery"]
[Black "Maghsoodloo, Parham"]
[WhiteFideId "13507443"]
[BlackFideId "12539929"]
[WhiteElo "2516"]
[BlackElo "2672"]
[Result "1-0"]
[Round "03"]
[TimeControl "180+1"]
[Date "2022.12.13"]
[WhiteClock "0:00:09"]
[BlackClock "0:00:03"]

1. Nf3 {[%clk 0:03:00]}  d5 {[%clk 0:02:59]} 2. c4 {[%clk 0:03:00]}  e6 {[%clk 0:02:59]} 3. b3 {[%clk 0:03:01]}  c5 {[%clk 0:02:58]} 4. e3 {[%clk 0:03:01]}  d4 {[%clk 0:02:58]} 5. exd4 {[%clk 0:03:01]}  cxd4 {[%clk 0:02:59]} 6. g3 {[%clk 0:03:02]}  Nc6 {[%clk 0:02:58]} 7. Bg2 {[%clk 0:03:03]}  e5 {[%clk 0:02:47]} 8. O-O {[%clk 0:03:04]}  Bd6 {[%clk 0:02:45]} 9. Re1 {[%clk 0:03:01]}  Nge7 {[%clk 0:02:44]} 10. Na3 {[%clk 0:02:58]}  O-O {[%clk 0:02:41]} 11. d3 {[%clk 0:02:55]}  f6 {[%clk 0:02:35]} 12. Nc2 {[%clk 0:02:55]}  a5 {[%clk 0:02:34]} 13. a3 {[%clk 0:02:52]}  g5 {[%clk 0:02:24]} 14. Rb1 {[%clk 0:02:31]}  Bf5 {[%clk 0:02:21]} 15. b4 {[%clk 0:02:31]}  Ng6 {[%clk 0:02:18]} 16. c5 {[%clk 0:02:28]}  Be7 {[%clk 0:02:13]} 17. Qe2 {[%clk 0:01:51]}  axb4 {[%clk 0:02:12]} 18. axb4 {[%clk 0:01:52]}  Ra2 {[%clk 0:02:11]} 19. Rb2 {[%clk 0:01:53]}  Rxb2 {[%clk 0:01:58]} 20. Bxb2 {[%clk 0:01:54]}  Re8 {[%clk 0:01:52]} 21. Nd2 {[%clk 0:01:52]}  Qd7 {[%clk 0:01:41]} 22. Ra1 {[%clk 0:01:51]}  Be6 {[%clk 0:01:39]} 23. Nc4 {[%clk 0:01:23]}  Bf8 {[%clk 0:01:38]} 24. Nb6 {[%clk 0:01:22]}  Qf7 {[%clk 0:01:38]} 25. b5 {[%clk 0:01:09]}  Nd8 {[%clk 0:01:20]} 26. Ba3 {[%clk 0:01:09]}  Bb3 {[%clk 0:01:06]} 27. Rb1 {[%clk 0:01:02]}  Kg7 {[%clk 0:00:59]} 28. Na1 {[%clk 0:00:41]}  Ba2 {[%clk 0:00:55]} 29. Rb2 {[%clk 0:00:42]}  Be6 {[%clk 0:00:55]} 30. Qc2 {[%clk 0:00:42]}  f5 {[%clk 0:00:52]} 31. Nb3 {[%clk 0:00:42]}  f4 {[%clk 0:00:45]} 32. Nd2 {[%clk 0:00:41]}  g4 {[%clk 0:00:45]} 33. Be4 {[%clk 0:00:41]}  Bf5 {[%clk 0:00:45]} 34. Nbc4 {[%clk 0:00:35]}  Ne6 {[%clk 0:00:43]} 35. c6 {[%clk 0:00:31]}  Ng5 {[%clk 0:00:41]} 36. Bxf8+ {[%clk 0:00:27]}  Rxf8 {[%clk 0:00:36]} 37. Nd6 {[%clk 0:00:26]}  Qe6 {[%clk 0:00:19]} 38. Nxf5+ {[%clk 0:00:24]}  Rxf5 {[%clk 0:00:18]} 39. Bxf5 {[%clk 0:00:19]}  Qxf5 {[%clk 0:00:18]} 40. Ne4 {[%clk 0:00:16]}  fxg3 {[%clk 0:00:17]} 41. Nxg5 {[%clk 0:00:07]}  gxh2+ {[%clk 0:00:15]} 42. Kxh2 {[%clk 0:00:08]}  Qxg5 {[%clk 0:00:14]} 43. cxb7 {[%clk 0:00:08]}  Qh4+ {[%clk 0:00:10]} 44. Kg1 {[%clk 0:00:09]}  g3 {[%clk 0:00:11]} 45. fxg3 {[%clk 0:00:08]}  Qxg3+ {[%clk 0:00:11]} 46. Qg2 {[%clk 0:00:09]}  Qe1+ {[%clk 0:00:07]} 47. Qf1 {[%clk 0:00:10]}  Qe3+ {[%clk 0:00:07]} 48. Rf2 {[%clk 0:00:10]}  Nf4 {[%clk 0:00:03]} 49. b8=Q {[%clk 0:00:09]}  Nh3+ {[%clk 0:00:03]} 50. Qxh3 {[%clk 0:00:08]}  Qxh3 {[%clk 0:00:03]} 51. Qxe5+ {[%clk 0:00:09]} 1-0


[Site "https://www.chess.com"]